bitfinex/quotes_ETHUSD_20241215
["timestamp","ask_amount","ask_price","bid_price","bid_amount"]
[1734304282553,0.814,3899.1,3897.9,0.13069056]
[1734304282758,0.03106799,3899.0,3898.0,0.3087655]
[1734304283802,0.814,3899.1,3898.0,0.3087655]
[1734304284711,0.814,3899.1,3898.3,2.56519]
[1734304285198,0.8014,3899.8,3898.4,2.95696439]
[1734304285398,0.8014,3899.8,3899.0,2.95696439]
[1734304285601,0.8014,3899.8,3899.1,0.29569644]
[1734304286214,0.8014,3899.8,3899.2,2.56461]
[1734304286399,0.8014,3899.8,3899.1,0.29569644]
[1734304286602,0.8014,3899.8,3898.7,2.56494]
[1734304286950,0.8014,3899.8,3898.4,5.52208439]
[1734304287099,0.8014,3899.8,3899.0,2.56473]
[1734304287702,0.8014,3899.8,3898.8,2.56487]
[1734304288009,0.8014,3899.8,3898.9,0.256487]
[1734304288369,0.8014,3899.8,3898.9,2.821297]
[1734304288700,0.8014,3899.8,3899.1,2.56468]
[1734304289637,0.8014,3899.8,3898.9,0.256487]
[1734304289933,0.8014,3899.8,3898.8,2.56483]
[1734304290659,0.8014,3899.8,3898.7,2.56494]
[1734304290945,0.8014,3899.8,3898.8,2.56488]
[1734304291162,0.8014,3899.8,3898.4,2.95696439]
[1734304291455,0.8014,3899.8,3898.5,0.29569644]
[1734304292008,0.8014,3899.8,3898.8,2.60157992]
[1734304292316,0.8014,3899.8,3899.0,2.56475]
[1734304292533,0.8014,3899.8,3899.3,2.60157992]
[1734304292935,0.8014,3899.8,3899.4,2.56448]
[1734304293132,2.56345,3901.0,3899.3,2.60157992]
[1734304293133,0.8193,3900.9,3899.5,0.54224833]
[1734304293397,0.8193,3900.9,3899.5,3.10665833]
[1734304293604,0.8193,3900.9,3899.5,0.51660599]
[1734304293806,0.8193,3900.3,3898.8,2.73070014]
[1734304293954,0.02557187,3900.2,3898.8,2.73070014]
[1734304294149,0.8193,3900.3,3899.0,2.56474]
[1734304294695,0.8193,3900.3,3898.8,2.73070014]
[1734304294873,0.8193,3900.3,3899.4,2.56447]
[1734304295058,0.8193,3900.3,3899.5,0.51660499]
[1734304295412,0.04208408,3900.2,3899.5,3.08102499]
[1734304295904,0.8193,3900.3,3899.5,3.08102499]
[1734304296111,0.03394331,3900.2,3899.5,3.08102499]
[1734304296259,0.8193,3900.3,3899.6,0.56826049]
[1734304296460,0.03403793,3900.2,3899.6,0.56826049]
[1734304296677,0.8193,3900.3,3899.6,0.56826049]
[1734304296918,0.03403793,3900.2,3899.6,0.56826049]
[1734304297206,0.8193,3900.3,3899.3,2.60157992]
[1734304297606,0.03111561,3900.2,3899.3,2.60157992]
[1734304298402,0.02557187,3900.1,3898.8,2.73070014]
[1734304298586,0.03111561,3900.2,3898.8,5.29558014]
[1734304298792,0.03105874,3900.0,3898.9,0.52955801]
[1734304298992,0.03108717,3900.1,3898.9,0.52955801]
[1734304299188,0.7735,3899.8,3898.9,0.52955801]
[1734304299564,0.03414962,3899.7,3898.9,0.52955801]
[1734304300920,2.56457,3899.3,3898.0,1.36724144]
[1734304301097,2.56457,3899.3,3898.0,0.3087655]
[1734304301098,0.83357187,3899.2,3898.0,0.3087655]
[1734304301269,0.808,3899.1,3897.8,0.13096485]
[1734304301467,3.39831187,3899.1,3897.6,2.60157992]
[1734304301675,0.808,3899.1,3897.8,2.56554]
[1734304301898,0.808,3899.1,3898.1,2.56534]
[1734304302135,0.808,3899.1,3898.2,0.02564982]
[1734304302283,0.808,3899.1,3898.6,2.60157992]
[1734304302484,3.0,3900.0,3898.7,0.26015799]
[1734304302698,0.02557187,3899.9,3898.6,2.60157992]
[1734304303480,0.02557187,3899.9,3898.6,5.16655992]
[1734304303682,3.78417187,3900.2,3898.7,2.56495]
[1734304303920,0.78417187,3900.2,3898.8,0.51665299]
[1734304304275,0.78417187,3900.2,3898.9,2.56476]
[1734304304276,0.7586,3900.2,3898.9,2.56476]
[1734304304802,0.7586,3900.2,3899.0,2.56472]
[1734304305008,0.04216324,3900.1,3899.0,2.56472]
[1734304305332,0.7586,3900.2,3899.0,2.56472]
[1734304305615,0.04216324,3900.1,3898.9,0.31182329]
[1734304306592,0.04216324,3900.1,3898.9,2.87661329]
[1734304306921,0.04216324,3900.1,3899.1,2.60157992]
[1734304307090,0.7586,3900.2,3899.6,2.56435]
[1734304307501,0.7586,3900.2,3899.2,1.05847594]
[1734304307942,0.7586,3900.2,3899.5,2.56438]
[1734304308123,0.7586,3900.2,3899.2,1.05847594]
[1734304308124,0.7586,3900.2,3899.2,2.56462]
[1734304308436,0.7586,3900.2,3899.3,0.81517564]
[1734304309146,0.7586,3900.2,3899.1,2.60157992]
[1734304310496,0.7586,3900.2,3899.1,3.66005586]
[1734304310695,0.7586,3900.2,3899.1,6.35492974]
[1734304311354,0.02638942,3900.1,3899.1,3.79028974]
[1734304311494,0.7586,3900.2,3899.1,2.7318138]
[1734304311837,0.02557187,3900.1,3899.1,0.13023388]
[1734304312141,0.7586,3900.2,3899.1,0.13023388]
[1734304312310,0.02643794,3900.1,3899.1,0.13023388]
[1734304312694,0.03391227,3900.1,3899.1,0.13023388]
[1734304312897,0.03391227,3900.1,3899.2,0.44046697]
[1734304313397,0.03391227,3900.1,3899.2,3.00508697]
[1734304313597,0.03391227,3900.1,3899.2,0.44046697]
[1734304313825,0.7586,3900.2,3899.2,0.44046697]
[1734304314034,0.03391227,3900.0,3899.3,2.56456]
[1734304314206,0.7586,3900.2,3899.3,0.45330634]
[1734304314612,0.03394355,3900.1,3899.3,3.01785634]
[1734304315029,0.03394355,3900.1,3899.3,0.45330634]
[1734304315228,0.7586,3900.2,3899.4,2.72865162]
[1734304315755,0.7693,3900.9,3900.1,2.56399]
[1734304315899,0.7693,3900.9,3900.1,1.05847594]
[1734304316103,0.7693,3900.9,3900.3,2.56387]
[1734304316794,0.7693,3900.9,3900.1,2.56402]
[1734304316903,0.7693,3900.9,3900.2,0.36224959]
[1734304317106,0.7693,3900.9,3900.3,2.56389]
[1734304317651,0.85817187,3902.3,3900.5,1.05847594]
[1734304317808,0.8326,3902.3,3901.3,2.56324]
[1734304318008,0.02493552,3902.2,3901.3,0.256324]
[1734304318240,0.8326,3902.3,3901.3,0.256324]
[1734304318680,0.04884502,3902.2,3900.9,3.62196594]
[1734304318959,0.8326,3902.3,3900.9,2.56349]
[1734304319162,0.8326,3902.3,3901.0,0.36219659]
[1734304319325,0.02345711,3902.2,3901.0,0.36219659]
[1734304319762,0.8326,3902.3,3901.0,0.36219659]
[1734304319942,0.02345711,3902.2,3901.0,0.36219659]
[1734304320259,0.8326,3902.3,3901.0,0.36219659]
[1734304320460,0.8326,3902.3,3901.1,0.3181994]
[1734304320680,0.8326,3902.3,3901.1,2.62721066]
[1734304320681,0.02345711,3902.2,3901.1,2.62721066]
[1734304320838,0.8326,3902.3,3901.7,2.56295]
[1734304321160,0.8326,3902.3,3901.8,2.819195]
[1734304321763,0.8326,3902.3,3901.8,0.256295]
[1734304321918,0.8326,3902.3,3901.2,0.8103]
[1734304322285,0.827,3903.2,3901.6,2.60157992]
[1734304322562,0.827,3903.2,3902.0,2.56272]
[1734304322711,0.827,3903.2,3902.1,2.818972]
[1734304322911,0.827,3903.2,3902.1,0.256272]
[1734304323160,0.827,3903.2,3902.5,2.56244]
[1734304323366,0.827,3903.2,3902.6,0.02562136]
[1734304323510,1.60266567,3905.0,3902.2,3.39147992]
[1734304323511,0.7874,3904.3,3902.7,2.60157992]
[1734304323753,0.02387348,3904.2,3903.0,2.56209]
[1734304323982,0.02387348,3904.2,3902.7,2.60157992]
[1734304323983,0.7874,3904.3,3902.7,5.16385992]
[1734304324184,0.33741419,3904.2,3902.7,5.68024591]
[1734304324373,0.02309782,3904.1,3902.7,5.68024591]
[1734304324602,0.02309782,3904.1,3902.9,2.56219]
[1734304325483,0.02309782,3904.1,3903.2,2.56198]
[1734304325820,0.7874,3904.3,3903.2,3.36397992]
[1734304325959,0.7974,3905.4,3903.7,2.60157992]
[1734304326166,3.35797,3905.4,3903.7,5.16321992]
[1734304326363,0.02387521,3905.3,3903.7,2.60157992]
[1734304326608,0.02387521,3905.3,3903.8,0.26015799]
[1734304326773,0.02387521,3905.3,3903.8,2.82172799]
[1734304326982,0.02387521,3905.3,3903.8,0.26015799]
[1734304327160,0.02387521,3905.3,3903.8,0.28576748]
[1734304327375,0.7974,3905.4,3904.3,2.60157992]
[1734304327580,0.7974,3905.4,3904.5,2.56109]
[1734304327827,2.5602,3906.0,3904.3,2.60157992]
[1734304327977,0.783,3905.9,3904.3,5.16281992]
[1734304328287,0.02469609,3905.8,3904.4,0.51628199]
[1734304330023,0.02469609,3905.8,3904.8,2.60157992]
[1734304330187,0.783,3905.9,3904.8,2.60157992]
[1734304330508,0.783,3905.9,3904.4,0.51628199]
[1734304330841,2.58583456,3905.8,3904.5,0.56791219]
[1734304330980,2.58583456,3905.8,3904.3,2.60157992]
[1734304331359,0.02551456,3905.8,3904.8,2.60157992]
[1734304331628,0.02551456,3905.8,3904.8,5.16249992]
[1734304331779,0.02551456,3905.8,3904.9,0.51624999]
[1734304331979,0.02551456,3905.8,3904.8,2.60157992]
[1734304332511,0.02551456,3905.8,3903.9,10.03408816]
[1734304332512,0.02557187,3905.8,3904.3,2.60157992]
[1734304332681,2.56061,3905.4,3904.3,2.60157992]
[1734304333038,2.56061,3905.4,3903.2,2.56198]
[1734304333039,0.8312,3904.9,3903.2,0.7823]
[1734304333244,3.0,3904.7,3902.8,2.60157992]
[1734304333378,3.0,3904.7,3902.9,0.26015799]
[1734304333379,0.8312,3903.7,3902.9,0.26015799]
[1734304333579,0.8312,3903.7,3902.2,0.7823]
[1734304333580,2.56185,3903.5,3902.2,3.38387992]
[1734304333839,0.0253387,3903.6,3902.2,3.38387992]
[1734304334122,2.56198,3903.3,3902.3,0.59466399]
[1734304334323,2.56198,3903.3,3902.2,2.60157992]
[1734304334537,0.02522397,3903.2,3902.2,2.60157992]
[1734304334879,2.56182,3903.5,3902.2,2.60157992]
[1734304335121,0.02422166,3903.4,3902.3,0.26015799]
[1734304335324,0.02422166,3903.4,3902.2,2.60157992]
[1734304335325,0.8312,3903.3,3902.2,2.60157992]
[1734304335524,0.8312,3903.3,3901.4,0.12953751]
[1734304335525,0.02339825,3903.2,3901.4,0.12953751]
[1734304335677,0.02339825,3903.2,3901.4,0.48087925]
[1734304335882,2.56208,3903.1,3901.7,2.60157992]
[1734304336081,0.02334086,3903.0,3901.7,2.60157992]
[1734304336526,2.58547086,3903.0,3901.7,2.60157992]
[1734304336977,0.02334086,3903.0,3901.7,2.60157992]
[1734304337185,0.02334086,3903.0,3901.8,0.51646199]
[1734304337384,2.56223,3902.9,3901.8,0.51646199]
[1734304337616,0.02306299,3902.8,3901.8,0.51646199]
[1734304338284,2.56205,3903.2,3901.8,0.51646199]
[1734304338484,0.8312,3903.3,3901.9,0.31180419]
[1734304338704,3.39314,3903.3,3901.9,0.31180419]
[1734304338910,2.56128,3904.3,3902.7,2.60157992]
[1734304339150,3.35905,3904.2,3902.7,2.60157992]
[1734304339372,0.7977,3904.2,3902.8,0.51640199]
[1734304339512,0.7977,3904.2,3903.2,2.60157992]
[1734304339907,0.7977,3904.2,3903.2,2.6271971]
[1734304340146,0.7977,3904.2,3903.2,2.60157992]
[1734304340865,0.03389496,3904.1,3903.2,2.60157992]
[1734304341011,0.03389496,3904.1,3903.3,0.26015799]
[1734304341211,0.03389496,3904.1,3902.8,0.51640199]
[1734304341641,0.7977,3904.2,3902.8,0.51640199]
[1734304341914,0.03389496,3904.1,3902.8,0.51640199]
[1734304342633,2.56181,3903.5,3902.8,0.51640199]
[1734304342824,2.62092683,3904.1,3902.2,2.60157992]
[1734304342825,2.56166,3903.8,3902.2,5.16422992]
[1734304343163,2.56166,3903.8,3902.3,2.56258]
[1734304343325,0.7977,3904.2,3902.2,2.60157992]
[1734304343326,0.05934197,3903.7,3902.2,2.60157992]
[1734304343533,0.7572,3903.4,3902.3,0.36492305]
[1734304343731,0.0336452,3903.3,3902.3,0.36492305]
[1734304343966,0.0336452,3903.3,3902.4,0.2966503]
[1734304344271,0.7572,3903.4,3902.4,0.2966503]
[1734304344633,0.0336452,3903.3,3902.4,0.2966503]
[1734304345230,0.0336452,3903.3,3902.4,2.8591503]
[1734304345428,0.0336452,3903.3,3902.8,0.12682323]
[1734304345825,0.0336452,3903.3,3902.5,0.54607302]
[1734304346288,0.7572,3903.4,3902.2,2.60157992]
[1734304346589,0.0336452,3903.3,3902.2,2.60157992]
[1734304346937,0.7572,3903.4,3902.2,2.60157992]
[1734304346938,0.7572,3903.4,3902.7,2.60157992]
[1734304347934,0.0335822,3903.3,3902.7,2.60157992]
[1734304348195,0.7572,3903.4,3902.7,2.60157992]
[1734304348477,0.7572,3903.4,3902.5,0.12487742]
[1734304348478,0.0335822,3903.3,3902.5,0.12487742]
[1734304348886,0.7572,3903.4,3902.5,0.12487742]
[1734304349190,0.0335822,3903.3,3902.2,2.60157992]
[1734304349393,0.0335822,3903.3,3902.3,0.26015799]
[1734304349993,0.7572,3903.4,3902.3,0.26015799]
[1734304350294,0.7944607,3903.4,3902.3,0.26015799]
[1734304350641,0.02557187,3903.3,3901.9,0.31180419]
[1734304350854,2.56215,3903.0,3901.9,0.31180419]
[1734304351102,0.7944607,3903.4,3901.9,0.31180419]
[1734304351103,2.56228,3902.8,3902.0,0.12855174]
[1734304351276,2.56228,3902.8,3901.7,2.60157992]
[1734304351277,3.35300187,3902.7,3900.9,1.06162992]
[1734304351449,0.7651,3902.6,3900.9,0.26622992]
[1734304351645,2.56261,3902.3,3900.9,0.26622992]
[1734304351845,2.56285,3901.9,3900.9,0.26622992]
[1734304352093,0.79067187,3902.2,3900.7,2.60157992]
[1734304352293,2.58830187,3902.1,3900.2,2.86802358]
[1734304352595,0.7651,3901.2,3900.2,2.86802358]
[1734304352805,0.7651,3901.2,3900.4,0.12842373]
[1734304353844,0.7751,3901.7,3900.5,2.56372]
[1734304354181,0.77201409,3901.7,3900.5,2.56372]
[1734304354484,0.77201409,3901.7,3900.4,0.12842373]
[1734304354942,0.77201409,3901.7,3900.7,5.16518992]
[1734304355226,0.77201409,3901.7,3900.8,0.51651899]
[1734304357328,2.58802187,3902.6,3900.8,0.51651899]
[1734304357329,0.7589,3902.5,3901.3,3.0]
[1734304357547,0.7589,3902.5,3901.8,2.60157992]
[1734304357712,0.7589,3902.9,3901.8,2.60157992]
[1734304357920,0.7589,3902.9,3902.0,3.0]
[1734304358289,0.7589,3902.9,3901.9,3.0]
[1734304358483,0.7589,3902.9,3902.0,0.51644199]
[1734304359987,3.0,3904.5,3902.5,0.7746]
[1734304359988,0.83,3903.9,3902.5,0.7746]
[1734304360408,0.83,3903.9,3902.6,0.02561865]
[1734304360839,0.83,3903.9,3903.1,2.56203]
[1734304361019,0.83,3903.9,3903.2,3.256203]
[1734304361220,0.83,3903.9,3903.2,0.256203]
[1734304361447,0.83,3903.9,3903.0,3.0]
[1734304361964,0.83,3903.9,3903.0,5.56211]
[1734304363078,0.7966,3904.3,3903.2,2.56198]
[1734304363375,0.7966,3904.3,3903.5,3.0]
[1734304363575,0.03406792,3904.2,3903.6,0.556184]
[1734304363867,0.03406792,3904.2,3903.2,2.56199]
[1734304364164,0.03406792,3904.2,3903.3,3.0]
[1734304364681,0.03406792,3904.2,3903.2,2.56199]
[1734304364682,0.03406792,3904.2,3903.7,2.56161]
[1734304364827,0.03406792,3904.2,3903.8,3.334601]
[1734304365045,0.7707,3904.8,3903.5,0.7844]
[1734304366187,0.7707,3904.8,3903.7,3.0]
[1734304366393,0.7707,3904.8,3903.5,0.7844]
[1734304366560,0.7707,3904.8,3903.9,3.0]
[1734304366770,0.02389744,3904.7,3904.0,0.556158]
[1734304367077,0.7707,3904.8,3904.0,0.556158]
[1734304367443,0.02389744,3904.7,3904.0,0.556158]
[1734304367679,0.02389744,3904.7,3904.3,2.56125]
[1734304367945,0.762,3905.5,3904.4,3.0]
[1734304368151,0.02704198,3904.6,3904.4,3.0]
[1734304368375,0.762,3905.5,3904.4,3.0]
[1734304368560,0.762,3905.5,3904.5,0.556125]
[1734304369845,0.762,3905.5,3904.5,3.0]
[1734304370253,0.762,3905.5,3904.6,2.56102]
[1734304370475,0.762,3905.5,3904.4,0.8242]
[1734304370813,0.762,3905.5,3903.8,3.0]
[1734304370952,2.56115,3904.5,3903.8,0.13068272]
[1734304371159,0.7813,3904.8,3903.1,0.8242]
[1734304371160,0.02557187,3904.7,3903.1,0.8242]
[1734304371397,2.56109,3904.6,3903.1,0.8242]
[1734304371550,0.7813,3904.8,3903.2,0.338632]
[1734304371551,0.80687187,3904.8,3903.2,0.338632]
[1734304371754,0.7813,3904.8,3903.1,3.38621]
[1734304371998,0.7813,3904.8,3903.6,2.56172]
[1734304372154,0.7813,3904.8,3903.7,0.256172]
[1734304372353,0.7813,3904.8,3903.7,2.56166]
[1734304372594,0.7813,3904.8,3903.5,0.0256109]
[1734304372814,0.7813,3904.8,3903.8,3.0]
[1734304372988,0.7813,3904.8,3903.9,2.56152]
[1734304373162,0.7813,3904.8,3904.0,3.556152]
[1734304373906,0.7813,3904.8,3904.0,0.556152]
[1734304374060,0.7813,3904.8,3903.4,0.12740637]
[1734304374749,2.56102,3904.7,3903.4,0.12740637]
[1734304374955,0.7813,3904.8,3903.4,0.12740637]
[1734304375155,0.7813,3904.8,3903.5,3.0]
[1734304375391,0.7813,3904.8,3903.4,0.12740637]
[1734304375392,2.56103,3904.7,3903.4,0.12740637]
[1734304375601,2.56115,3904.5,3903.4,0.12740637]
[1734304375767,0.7888,3904.1,3903.4,0.12740637]
[1734304376352,0.02347424,3904.0,3903.4,0.12740637]
[1734304376512,0.02347424,3904.0,3902.6,0.8119]
[1734304376513,2.58495424,3904.0,3902.6,0.8119]
[1734304376712,0.02347424,3904.0,3902.6,0.8119]
[1734304377013,0.02347424,3904.0,3902.7,0.337435]
[1734304377604,0.02347424,3904.0,3902.7,3.337435]
[1734304377782,0.7888,3904.1,3903.0,0.13113297]
[1734304378110,0.26015799,3906.3,3902.7,0.337435]
[1734304378111,0.8071,3903.4,3902.7,0.337435]
[1734304378415,0.8071,3903.4,3902.1,0.7909]
[1734304378416,2.59319761,3903.3,3902.1,0.7909]
[1734304378712,2.56206,3903.1,3901.6,2.60157992]
[1734304378866,2.56206,3903.1,3901.7,0.52266839]
[1734304379176,0.05987255,3903.0,3901.7,0.52266839]
[1734304379375,2.56228,3902.8,3901.6,0.7505]
[1734304379777,0.03420698,3902.7,3902.0,0.12973961]
[1734304380125,0.8222,3902.6,3901.1,0.7505]
[1734304380302,0.8222,3902.6,3900.5,8.89]
[1734304380303,0.02557187,3902.5,3900.7,1.80054158]
[1734304380623,2.56307,3901.6,3900.9,0.12843389]
[1734304380826,2.56252,3902.4,3900.6,0.04]
[1734304380827,0.8222,3900.8,3900.6,0.04]
[1734304380997,0.8222,3900.8,3899.4,1.05004158]
[1734304381179,0.02557187,3900.7,3899.2,0.7505]
[1734304381385,0.02557187,3900.7,3898.6,0.26638391]
[1734304381386,2.60157992,3900.6,3898.6,0.26638391]
[1734304381621,0.8222,3900.0,3898.6,0.26638391]
[1734304381794,2.56477,3899.0,3898.4,0.40032578]
[1734304381996,0.02557187,3898.9,3898.4,0.40032578]
[1734304382228,0.8222,3899.1,3898.4,0.40032578]
[1734304382429,2.62715179,3899.0,3898.4,0.40032578]
[1734304382735,0.55,3898.7,3898.4,0.40032578]
[1734304382949,2.59060187,3898.6,3898.4,0.40032578]
[1734304383083,2.59060187,3898.6,3896.8,0.12481117]
[1734304383084,2.56523,3898.3,3896.8,0.12481117]
[1734304383289,0.02557187,3898.2,3897.2,0.40091286]
[1734304383537,2.56523,3898.3,3896.8,0.12481117]
[1734304383837,0.02557187,3898.7,3896.8,0.12481117]
[1734304384228,0.8222,3898.8,3896.9,0.33813725]
[1734304384428,0.8222,3898.8,3897.3,3.7721]
[1734304384854,0.8222,3898.8,3897.5,3.0]
[1734304385176,0.8114,3899.7,3898.8,2.56487]
[1734304385307,1.31574346,3901.6,3898.4,3.0]
[1734304385308,0.8114,3900.5,3898.9,2.821287]
[1734304385510,0.8114,3900.5,3898.6,3.0]
[1734304385511,0.83697187,3900.5,3898.6,3.0]
[1734304385752,0.83697187,3900.5,3898.8,3.0]
[1734304385949,0.8114,3900.5,3898.9,0.556495]
[1734304386153,0.8114,3900.5,3898.8,5.56482]
[1734304386521,0.02557187,3900.4,3898.9,2.56477]
[1734304386721,0.02557187,3900.4,3898.4,3.0]
[1734304386952,0.83697187,3900.5,3898.6,3.0]
[1734304387150,0.83697187,3900.5,3898.6,5.565]
[1734304387361,0.83697187,3900.5,3898.5,0.256514]
[1734304387543,0.8114,3900.5,3899.4,3.0]
[1734304387747,0.02557187,3902.0,3899.7,2.56428]
[1734304387748,0.8114,3901.9,3899.7,2.56428]
[1734304387962,0.8114,3901.9,3899.8,3.02563922]
[1734304388266,0.8114,3901.9,3900.8,3.0]
[1734304388560,0.8114,3901.9,3900.5,2.56374]
[1734304388764,0.8114,3901.9,3900.2,3.0]
[1734304388765,0.8114,3901.9,3900.6,3.256374]
[1734304388917,0.8114,3901.9,3900.4,3.0]
[1734304390243,0.8114,3901.9,3900.4,5.56382]
[1734304391011,0.8114,3901.9,3900.0,3.0]
[1734304391213,0.8114,3901.9,3900.5,3.0]
[1734304391631,0.8114,3901.9,3900.1,0.688625]
[1734304391831,0.7888,3901.6,3899.4,0.7946]
[1734304392017,0.7888,3901.4,3899.0,0.7946]
[1734304392218,0.7888,3901.2,3899.3,2.56454]
[1734304392441,0.02557187,3901.1,3899.3,2.56454]
[1734304392729,0.02557187,3901.1,3899.4,0.256454]
[1734304393044,0.7888,3901.2,3899.5,0.12515978]
[1734304393558,0.7888,3901.2,3899.8,2.56421]
[1734304395316,0.7888,3901.2,3899.6,3.0]
[1734304395317,0.02557187,3901.1,3899.6,3.0]
[1734304395515,0.02557187,3901.1,3899.5,0.12515978]
[1734304396126,0.7328,3900.6,3898.6,2.56495]
[1734304396315,0.35521687,3900.5,3898.7,0.3616064]
[1734304397713,0.35521687,3900.5,3898.7,3.3616064]
[1734304397918,0.35521687,3900.5,3898.7,0.3616064]
[1734304398130,0.02557187,3900.5,3898.5,0.256514]
[1734304398363,2.56364,3900.7,3898.6,0.12893927]
[1734304398567,2.56391,3900.3,3898.6,0.12893927]
[1734304398873,0.02557187,3900.2,3898.6,0.12893927]
[1734304399125,2.58956187,3900.2,3898.6,0.12893927]
[1734304399415,0.7888,3900.1,3898.6,0.12893927]
[1734304399711,0.02557187,3900.0,3898.6,0.12893927]
[1734304399862,2.56431,3899.7,3898.0,0.7946]
[1734304400063,0.7888,3899.1,3897.1,3.36058]
[1734304400265,0.7888,3899.1,3897.2,0.36908354]
[1734304400512,0.02557187,3899.0,3897.2,0.36908354]
[1734304400677,0.8258,3898.9,3897.2,0.36908354]
[1734304401003,0.02557187,3898.8,3897.2,0.36908354]
[1734304401398,2.56533,3898.2,3896.4,0.26630751]
[1734304401717,0.85137187,3898.1,3896.4,0.26630751]
[1734304402072,3.41674187,3898.1,3896.4,0.26630751]
[1734304402565,0.8258,3898.1,3896.6,0.12530104]
[1734304402793,0.85137187,3898.1,3896.6,0.12530104]
[1734304403110,0.85137187,3898.1,3896.7,0.29579786]
[1734304403697,0.8258,3898.1,3896.7,0.29579786]
[1734304404204,0.8258,3898.1,3896.7,3.0]
[1734304404518,0.8258,3898.1,3896.6,0.12530104]
[1734304404920,0.8258,3898.1,3896.7,1.34965839]
[1734304405124,0.8258,3898.1,3896.8,3.0]
[1734304405287,0.8258,3898.1,3896.7,0.55]
[1734304405633,0.8258,3898.1,3896.7,3.11622]
[1734304405840,0.8258,3898.1,3896.6,0.12530104]
[1734304405841,0.8258,3898.1,3896.9,0.55]
[1734304406008,0.7793,3898.5,3897.4,3.0]
[1734304406205,0.7793,3898.5,3897.2,3.55]
[1734304406405,0.80487187,3899.5,3897.8,2.56553]
[1734304406613,0.80487187,3899.5,3897.3,3.67902461]
[1734304406823,0.7793,3899.5,3898.3,2.56517]
[1734304407138,0.7793,3899.5,3898.4,0.256517]
[1734304407337,0.7793,3899.5,3898.1,3.0]
[1734304408033,0.7793,3899.5,3898.0,2.56537]
[1734304408393,0.7793,3899.5,3897.9,0.774]
[1734304408588,0.7793,3899.5,3898.0,0.55]
[1734304408795,3.0,3900.1,3897.3,0.689005]
[1734304408796,2.56484,3898.9,3897.3,0.689005]
[1734304408994,3.25,3900.1,3897.2,3.12970116]
[1734304408995,0.8166,3898.7,3897.2,5.69563116]
[1734304409244,0.8166,3898.7,3897.3,0.64602312]
[1734304409621,0.8166,3898.7,3897.2,0.12970116]
[1734304409622,0.8166,3898.7,3897.5,2.56572]
[1734304409823,0.8166,3898.7,3897.2,2.69563116]
[1734304410043,0.8166,3898.7,3897.7,2.56559]
[1734304410765,0.8166,3898.7,3897.2,0.12970116]
[1734304410968,0.7515,3898.1,3896.6,0.12530104]
[1734304411279,0.7515,3897.9,3896.6,0.12530104]
[1734304411561,0.7515,3897.9,3895.4,12.28093347]
[1734304411562,0.7515,3897.5,3895.4,0.40091386]
[1734304411716,2.99001961,3898.3,3895.4,0.40091386]
[1734304411717,0.7515,3896.8,3895.4,0.40091386]
[1734304411918,0.77707187,3896.8,3895.0,3.34246]
[1734304412163,0.77707187,3896.8,3895.0,0.7751]
[1734304412520,2.56629,3896.7,3895.0,0.7751]
[1734304412874,2.56629,3896.7,3894.2,2.99001961]
[1734304412875,0.81,3896.4,3894.5,2.56768]
[1734304413023,1.17577006,3896.4,3894.0,2.56801]
[1734304413529,0.81,3896.3,3893.7,3.38956291]
[1734304413730,0.81,3896.3,3893.9,2.5681]
[1734304413731,0.81,3895.7,3893.9,2.5681]
[1734304414023,0.81,3895.7,3894.1,2.99001961]
[1734304414176,0.8113,3896.2,3894.8,2.56747]
[1734304414378,0.8113,3896.2,3894.9,3.0]
[1734304414732,0.8113,3896.2,3894.6,0.55]
[1734304414936,0.8113,3896.2,3894.8,3.55]
[1734304415186,0.8113,3896.2,3894.9,2.56743]
[1734304415339,0.8113,3896.2,3895.0,3.0]
[1734304415885,0.8113,3896.2,3894.8,3.55]
[1734304416081,0.8113,3896.2,3894.9,0.611758]
[1734304416248,0.8113,3896.2,3895.2,0.55]
[1734304416588,2.56576,3897.5,3895.3,0.83486772]
[1734304416589,0.7977,3896.7,3895.3,0.83486772]
[1734304416874,0.7977,3896.7,3895.9,3.0]
[1734304417181,0.7977,3896.7,3896.0,0.556685]
[1734304417387,0.7977,3896.7,3895.7,0.55]
[1734304417693,0.7977,3896.7,3895.4,0.57566397]
[1734304417865,0.7977,3896.7,3895.4,0.55]
[1734304418484,0.7977,3896.7,3895.9,2.56679]
[1734304418788,0.7977,3897.3,3896.0,0.256679]
[1734304419083,0.7977,3897.3,3895.9,0.55]
[1734304419267,0.7977,3897.3,3896.0,0.611687]
[1734304420546,0.7977,3897.3,3895.6,0.55]
[1734304420746,0.7977,3897.3,3896.2,3.0]
[1734304421085,0.7977,3897.3,3896.3,3.0]
[1734304421285,0.7977,3897.3,3896.4,3.0]
[1734304421798,0.7977,3897.3,3896.5,2.5664]
[1734304421946,0.7977,3897.3,3896.9,2.56613]
[1734304422489,0.52007478,3899.1,3897.0,0.02565868]
[1734304422490,0.7795,3898.4,3897.0,0.02565868]
[1734304422673,0.7795,3898.4,3897.4,2.56577]
[1734304423263,0.7795,3898.4,3897.6,2.56567]
[1734304424381,1.025839,3899.5,3898.0,2.56541]
[1734304424592,2.99001961,3900.1,3898.0,2.56541]
[1734304424593,0.8143,3898.8,3898.0,2.56541]
[1734304425189,0.8143,3898.8,3898.1,2.56532]
[1734304425785,0.8143,3898.8,3897.8,3.0]
[1734304425981,0.8143,3898.8,3897.6,0.7178377]
[1734304426181,0.02557187,3898.7,3897.2,3.55]
[1734304426415,0.8143,3898.6,3896.6,2.56632]
[1734304426713,0.8143,3898.2,3896.7,0.337232]
[1734304426918,0.8143,3898.2,3896.9,2.56612]
[1734304427233,0.8143,3898.2,3897.1,2.566]
[1734304427537,0.8143,3898.2,3896.7,0.02565563]
[1734304427688,0.8143,3898.2,3896.8,0.817]
[1734304427872,0.8143,3898.2,3896.9,0.575653]
[1734304428072,0.8143,3898.2,3897.3,3.55]
[1734304428414,0.8143,3898.2,3897.4,0.55]
[1734304428611,0.8143,3898.2,3897.1,0.55]
[1734304428773,0.8143,3898.2,3896.8,0.817]